[Event "Israeli Team U18-ch 2022"]
[Site "Be'er Ya'akov"]
[Date "2022.08.15"]
[Round "5.20"]
[White "Ashkenazy, Ayal"]
[Black "Zusman, Noa"]
[Result "0-1"]
[ECO "C11"]
[WhiteElo "1347"]
[BlackElo "1246"]
[Annotator "NA RC"]
[PlyCount "62"]
[EventDate "2022.08.14"]
[EventCountry "ISR"]
[SourceTitle "playchess.com"]
[Source "ChessBase"]
[SourceQuality "1"]
[TimeControl "3000+10"]

1. d4 {[%emt 0:00:04]} e6 {[%emt 0:00:08]} 2. e4 {[%emt 0:00:06]} d5 {[%emt 0:00:10]} 3. Nd2 {[%emt 0:00:02]} Nf6 {[%emt 0:00:13]} 4. e5 {[%emt 0:00:08]} Nfd7 {[%emt 0:00:06]} 5. Ne2 {[%emt 0:00:07]} c5 {[%emt 0:00:12]} 6. c3 {[%emt 0:00:12]} Nc6 {[%emt 0:00:05]} 7. Nf3 {[%emt 0:00:08]} Qb6 {[%emt 0:00:38]} 8. Rb1 {[%emt 0:01:46]} cxd4 {[%emt 0:02:48]} 9. cxd4 {[%emt 0:00:10]} Bb4+ {[%emt 0:00:46]} 10. Bd2 {[%emt 0:00:07]} f6 {[%emt 0:01:43]} 11. exf6 {[%emt 0:04:37]} Nxf6 {[%emt 0:00:19]} 12. a3 {[%emt 0:00:42]} Bd6 {[%emt 0:00:53]} 13. Bc3 {[%emt 0:03:23]} O-O {[%emt 0:01:58]} 14. Ne5 {[%emt 0:03:54]} Bxe5 {[%emt 0:03:55]} 15. dxe5 {[%emt 0:00:13]} Ne4 {[%emt 0:00:39]} 16. Bd4 {[%emt 0:01:28]} Nxd4 {[%emt 0:01:04]} 17. Qxd4 {[%emt 0:00:07]} Qxd4 {[%emt 0:00:47]} 18. Nxd4 {[%emt 0:00:08]} Nxf2 {[%emt 0:00:13]} 19. Rg1 {[%emt 0:00:55]} Ng4 {[%emt 0:00:10]} 20. Nf3 {[%emt 0:00:35]} Rf5 {[%emt 0:01:12]} 21. Bd3 {[%emt 0:00:23]} Rh5 {[%emt 0:00:23]} 22. Kd1 {[%emt 0:01:32]} Nxe5 {[%emt 0:00:59]} 23. Be2 {[%emt 0:03:41]} Nxf3 {[%emt 0:02:25]} 24. Bxf3 {[%emt 0:00:09]} Rxh2 {[%emt 0:01:03]} 25. Kd2 {[%emt 0:00:01]} Bd7 {[%emt 0:01:30]} 26. Ke3 {[%emt 0:00:15]} Rf8 {[%emt 0:02:01]} 27. Kd4 {[%emt 0:00:52]} Rh6 {[%emt 0:03:00]} 28. Ke5 {[%emt 0:00:43]} Bc6 {[%emt 0:00:31]} 29. b4 {[%emt 0:00:19]} Rf5+ {[%emt 0:01:44]} 30. Kd6 {[%emt 0:00:08]} e5+ {[%emt 0:00:18]} 31. Kc5 {[%emt 0:00:15]} b6# {[%emt 0:23:27]} 0-1

[Event "Israeli Team U18-ch 2022"]
[Site "Be'er Ya'akov"]
[Date "2022.08.16"]
[Round "6.1"]
[White "Aizenberg, Benny"]
[Black "Levin, Guy"]
[Result "1-0"]
[ECO "B33"]
[WhiteElo "2361"]
[BlackElo "2363"]
[Annotator "TA"]
[PlyCount "99"]
[EventDate "2022.08.14"]
[EventCountry "ISR"]
[SourceTitle "playchess.com"]
[Source "ChessBase"]
[SourceQuality "1"]
[TimeControl "3000+10"]

{[%evp 13,99,53,47,34,66,63,73,59,65,58,62,0,56,58,59,50,117,106,111,102,113,91,99,97,82,74,97,105,94,92,170,154,163,135,191,98,104,104,105,66,59,0,113,113,106,104,100,98,102,100,100,39,48,0,97,80,165,146,168,125,119,99,106,108,166,179,208,196,427,255,415,410,530,537,552,545,516,380,362,369,470,461,1648,1647,1254,1157,1185,464]} 1. e4 {[%emt 0:00:01]} c5 {[%emt 0:01:12]} 2. Nf3 {[%emt 0:00:03]} Nc6 {[%emt 0:00:09]} 3. d4 {[%emt 0:00:04]} cxd4 {[%emt 0:00:03]} 4. Nxd4 {[%emt 0:00:04]} Qb6 {[%emt 0:00:20]} 5. Nb3 {[%emt 0:00:05]} Nf6 {[%emt 0:00:05]} 6. Nc3 {[%emt 0:00:04]} e6 {[%emt 0:00:04]} 7. a3 {[%emt 0:00:03]} Be7 {[%emt 0:00:07]} 8. Bf4 {[%emt 0:00:04] B33: Sicilian: Pelikan and Sveshnikov Variations.} d5 {[%emt 0:05:15]} 9. exd5 {[%emt 0:01:55]} exd5 {[%emt 0:01:21] [#]} 10. Nb5 $146 {[%emt 0:03:08] White is better.} ({Predecessor:} 10. Nxd5 Nxd5 11. Qxd5 Be6 12. Qb5 Bxb3 13. Qxb6 axb6 14. cxb3 Nd4 15. O-O-O Nxb3+ 16. Kc2 {1-0 (57) Mandak,M-Hrtko,V Bratislava 1994}) 10... O-O $1 {[%emt 0:08:22]} 11. Bc7 $1 {[%emt 0:01:46]} Bg4 {[%emt 0:00:26]} (11... Bb4+ $2 12. axb4 Re8+ 13. Qe2 $3 {[%mdl 512]} (13. Kd2 $2 Qxf2+ 14. Kc1 Re1 $19) 13... Qxb5 14. Qxe8+ Nxe8 15. Bxb5 $18) 12. Qxg4 {[%emt 0:05:10]} (12. Bxb6 $14 Bxd1 13. Rxd1 axb6 14. Bd3) 12... Nxg4 {[%emt 0:01:01]} ({Better is} 12... Rfe8 $1 $11 13. Be2 (13. Bxb6 $2 Bb4+ 14. Kd1 Re1#) 13... Qxb5 14. Bxb5 Nxg4) 13. Bxb6 $14 {[%emt 0:00:02]} axb6 {[%emt 0:00:10]} 14. Be2 {[%emt 0:00:06]} Nge5 {[%emt 0:02:09]} (14... h5 $14) 15. O-O-O $16 {[%emt 0:01:56]} Rad8 {[%emt 0:00:06]} 16. f4 {[%emt 0:06:28]} Nc4 {[%emt 0:12:46]} 17. Bf3 {[%emt 0:01:58]} Bf6 {[%emt 0:00:52]} 18. c3 {[%emt 0:00:12]} g5 {[%emt 0:00:03]} 19. g3 {[%emt 0:01:52]} (19. Bxd5 Ne3 20. Bxc6 Nxd1 21. Bxb7 Nf2 $15) 19... g4 {[%emt 0:02:13]} 20. Be2 {[%emt 0:01:42]} ({Much weaker is} 20. Bxd5 $6 Ne3 $11) 20... Rfe8 {[%emt 0:00:02]} 21. Bd3 {[%emt 0:02:33]} N4a5 {[%emt 0:06:07] [#]} (21... Ne3 $16) 22. Nd2 $1 $18 {[%emt 0:06:26]} Re3 {[%emt 0:03:24]} 23. Kc2 {[%emt 0:00:55]} Ne7 {[%emt 0:00:03]} (23... d4 $16) 24. Rhe1 {[%emt 0:01:02]} (24. Nf1 $18 Rf3 25. h3) 24... Rxe1 $16 {[%emt 0:00:12]} 25. Rxe1 {[%emt 0:00:02]} h5 {[%emt 0:00:27]} 26. Be2 {[%emt 0:05:41]} Nf5 {[%emt 0:00:49]} 27. Bd3 {[%emt 0:00:08]} (27. Nf1 $14) 27... Ne7 $1 {[%emt 0:00:02]} 28. Rh1 {[%emt 0:00:28]} Kg7 {[%emt 0:02:04]} 29. h3 {[%emt 0:00:04]} gxh3 {[%emt 0:00:34]} 30. Rxh3 {[%emt 0:00:03]} Rh8 {[%emt 0:00:35]} 31. Nf3 {[%emt 0:00:49]} Nac6 {[%emt 0:00:19]} 32. Nd6 {[%emt 0:00:41]} ({White should play} 32. b4 $16) 32... Rd8 $14 {[%emt 0:00:02]} 33. Nb5 {[%emt 0:00:49]} ({Of course not} 33. Nxb7 Rd7 $15) (33. Nf5+ $1 $14 {is superior.} Nxf5 34. Bxf5) 33... Rh8 $1 $16 {[%emt 0:00:03]} 34. Rh1 {[%emt 0:00:07]} Ng6 {[%emt 0:00:37]} (34... Nd8 $16) 35. Nd6 $36 {[%emt 0:00:33][%mdl 2048] White is really pushing.} Nd8 {[%emt 0:00:48]} 36. Re1 {[%emt 0:00:38] Threatens to win with Ne8+.} Ne7 {[%emt 0:00:07]} 37. Ne5 {[%emt 0:01:11] 0x0.0002dadc0424dp-1022s more active pieces.} Bxe5 {[%emt 0:00:48]} 38. Rxe5 {[%emt 0:00:27]} Kf8 {[%emt 0:00:03] [#]} (38... Ndc6 $16) 39. Be2 $1 {[%emt 0:00:46]} h4 {[%emt 0:00:15]} 40. gxh4 {[%emt 0:00:04]} Ng6 $2 {[%emt 0:01:56]} (40... Rh6) 41. Re8+ {[%emt 0:01:19]} Kg7 {[%emt 0:00:02]} 42. f5 {[%emt 0:00:07][%cal Bf4f5,Bf5f6][%mdl 32]} ({Not} 42. Rxh8 Kxh8 43. Bh5 Kg7 44. Bxg6 fxg6 $18) 42... Nxh4 {[%emt 0:00:26]} 43. f6+ $1 {[%emt 0:00:06]} Kh7 {[%emt 0:00:02]} 44. Bd3+ {[%emt 0:00:48]} Ng6 {[%emt 0:00:02]} 45. Re7 {[%emt 0:00:02]} Rf8 {[%emt 0:00:54]} 46. Nxb7 {[%emt 0:00:08]} Nc6 {[%emt 0:00:07]} 47. Nd6 {[%emt 0:00:07] White is clearly winning.} Kg8 {[%emt 0:00:13]} (47... Kh6 $142 48. Nxf7+ Kh5) 48. Bxg6 {[%emt 0:00:08]} fxg6 {[%emt 0:00:10]} 49. Rg7+ {[%emt 0:00:02]} Kh8 {[%emt 0:00:02]} 50. Nf7+ {[%emt 0:00:01] Weighted Error Value: White=0.16 (very precise) /Black=0.23 (precise)} 1-0

[Event "Israeli Team U18-ch 2022"]
[Site "Be'er Ya'akov"]
[Date "2022.08.16"]
[Round "6.2"]
[White "Ben Ari, Yannay"]
[Black "Shteiman, Yuval"]
[Result "1-0"]
[ECO "D00"]
[WhiteElo "2411"]
[BlackElo "2034"]
[Annotator "TA"]
[PlyCount "99"]
[EventDate "2022.08.14"]
[EventCountry "ISR"]
[SourceTitle "playchess.com"]
[Source "ChessBase"]
[SourceQuality "1"]
[TimeControl "3000+10"]

{[%evp 9,99,-6,-14,-3,2,-20,0,0,29,22,39,-25,-21,-19,-27,-54,-37,-35,-19,-37,0,0,0,-14,-20,-12,17,-6,-22,-31,8,0,-20,-19,-16,-106,-93,-98,0,-5,0,-25,-24,-52,111,105,107,106,122,121,140,135,164,157,165,164,163,164,168,164,161,134,133,120,114,102,739,732,704,642,1274,1193,1023,1248,1137,1179,1387,1391,1604,1457,2512,2477,12840,12839,29982,29983,29983,29984,29985,29986,29986,29987]} 1. d4 {[%emt 0:03:29]} Nf6 {[%emt 0:00:04]} 2. Nc3 {[%emt 0:00:04]} d5 {[%emt 0:00:31]} 3. Bf4 {[%emt 0:00:07]} e6 {[%emt 0:00:56]} 4. Nb5 {[%emt 0:00:02]} Na6 {[%emt 0:00:20]} 5. e3 {[%emt 0:00:02]} Be7 {[%emt 0:04:00]} 6. Nf3 {[%emt 0:00:30] D00: 1 d4 d5: Unusual lines.} O-O {[%emt 0:00:21]} 7. Ne5 {[%emt 0:03:31]} c6 {[%emt 0:07:23]} 8. Nc3 {[%emt 0:00:02] The position is equal.} c5 {[%emt 0:02:41]} 9. Bxa6 {[%emt 0:13:51]} bxa6 {[%emt 0:00:05] [#]} 10. dxc5 $146 {[%emt 0:05:18]} ({Better is} 10. Nc6 $14 Qd7 11. Nxe7+ Qxe7 12. O-O) ({Predecessor:} 10. Nc6 Qd7 11. Nxe7+ Qxe7 12. O-O Bd7 13. Re1 Rfe8 14. Qf3 Bc6 15. Bg5 Rab8 16. b3 {0-1 (112) Bortnyk,O (2604)-Sevian,S (2684) Chess.com INT 2022}) 10... Bxc5 $11 {[%emt 0:02:02]} 11. O-O {[%emt 0:00:23]} Bb7 {[%emt 0:01:16]} 12. Qf3 {[%emt 0:04:21]} Nd7 {[%emt 0:12:00]} 13. Qg4 {[%emt 0:06:22][%cal Of4h6]} Be7 {[%emt 0:04:50]} 14. Rad1 {[%emt 0:01:55]} Nxe5 {[%emt 0:01:49]} 15. Bxe5 {[%emt 0:00:02][%csl Ge5][%cal Rg4g7]} Bf6 {[%emt 0:00:12]} 16. Qg3 {[%emt 0:00:28]} Bxe5 {[%emt 0:01:28]} 17. Qxe5 {[%emt 0:00:02]} Qf6 {[%emt 0:03:07]} 18. Qc7 {[%emt 0:04:14]} Rab8 {[%emt 0:00:53]} 19. Rd3 {[%emt 0:05:05]} Qg6 {[%emt 0:02:08][%cal Od5d4] ...d4! is the strong threat.} (19... Rfc8 $5 {[%cal Rc8c7]} 20. Qa5 Qd8 21. Qxd8+ Rxd8 $11) 20. f3 {[%emt 0:00:32]} Rfc8 {[%emt 0:01:34]} 21. Qd6 {[%emt 0:00:01]} Bc6 {[%emt 0:01:00]} 22. Qa3 {[%emt 0:01:40]} (22. Qe5 $11 {keeps the balance.}) 22... Bb5 $17 {[%emt 0:02:08]} 23. Nxb5 {[%emt 0:00:01]} axb5 {[%emt 0:00:01]} (23... Rxc2 $17 {[%csl Gc2][%cal Rg6g2]} 24. Rf2 Rc1+ 25. Rf1 Rxf1+ 26. Kxf1 axb5) 24. Rf2 {[%emt 0:01:14]} b4 {[%emt 0:01:14]} 25. Qa6 {[%emt 0:00:22]} Qf6 {[%emt 0:01:00]} 26. Rd4 {[%emt 0:00:00][%cal Od4b4]} Qg6 $2 {[%emt 0:00:41] [#]} (26... Qe7 $15 {stays ahead.}) 27. Rxb4 $3 $16 {[%emt 0:00:09][%mdl 512]} Qf6 {[%emt 0:00:16]} 28. c3 {[%emt 0:00:21]} Qd8 {[%emt 0:00:26]} 29. a3 {[%emt 0:00:20] White is more active.} Rxb4 30. axb4 {[%emt 0:00:01][%mdl 4096] Endgame KQR-KQR} Qc7 {[%emt 0:00:21]} 31. Rf1 {[%emt 0:00:11]} Rb8 {[%emt 0:00:16]} 32. Ra1 {[%emt 0:00:03]} Rb7 {[%emt 0:00:12]} 33. Ra5 {[%emt 0:00:04]} g6 {[%emt 0:00:08]} 34. Rc5 {[%emt 0:00:07]} Qb6 {[%emt 0:00:04]} 35. Qa4 {[%emt 0:00:10]} Rc7 {[%emt 0:00:11]} 36. Qa5 {[%emt 0:00:50] And now Qxb6 would win.} Rxc5 {[%emt 0:00:18]} 37. Qxc5 {[%emt 0:00:01]} Qxc5 $4 {[%emt 0:00:02][%mdl 8192] Black cannot hold the game after this.} (37... Qa6 $16) 38. bxc5 {[%emt 0:00:01] Black must now prevent c6. KP-KP} Kf8 {[%emt 0:00:01]} 39. b4 {[%emt 0:00:14]} a6 {[%emt 0:00:01]} 40. Kf2 {[%emt 0:00:03]} Ke8 {[%emt 0:00:50]} 41. Ke2 {[%emt 0:00:20]} Kd7 {[%emt 0:00:00]} 42. Kd3 {[%emt 0:00:01]} Kc6 {[%emt 0:00:00]} 43. c4 {[%emt 0:00:00]} dxc4+ {[%emt 0:00:08]} 44. Kxc4 {[%emt 0:00:02]} f6 {[%emt 0:00:09]} 45. f4 {[%emt 0:00:15]} e5 {[%emt 0:00:18]} 46. fxe5 {[%emt 0:00:05]} fxe5 {[%emt 0:00:01]} 47. e4 {[%emt 0:00:00] White mates.} h6 {[%emt 0:00:14]} 48. h4 {[%emt 0:00:12][%cal Bh2h4,Bh4h5][%mdl 32]} g5 {[%emt 0:00:09]} 49. h5 {[%emt 0:00:14]} g4 {[%emt 0:00:01]} 50. g3 {[%emt 0:00:01] Weighted Error Value: White=0.15 (very precise) /Black=0.33} 1-0

[Event "Israeli Team U18-ch 2022"]
[Site "Be'er Ya'akov"]
[Date "2022.08.16"]
[Round "6.3"]
[White "Friedland, Eldar"]
[Black "Kochavi, Ori"]
[Result "0-1"]
[ECO "A13"]
[WhiteElo "1990"]
[BlackElo "2364"]
[Annotator "TA"]
[PlyCount "56"]
[EventDate "2022.08.14"]
[EventCountry "ISR"]
[SourceTitle "playchess.com"]
[Source "ChessBase"]
[SourceQuality "1"]
[TimeControl "3000+10"]

{[%evp 9,56,7,17,0,19,-2,0,0,0,0,0,-4,-4,-41,-24,-39,-30,-79,-70,-106,-92,-100,-116,-110,-101,-106,-107,-127,-54,-42,-48,-38,-75,-272,-200,-783,-801,-769,-794,-721,-719,-792,-777,-941,-914,-1061,-852,-953,-846]} 1. c4 {[%emt 0:00:07]} Nf6 {[%emt 0:00:50]} 2. Nf3 {[%emt 0:00:08]} e6 {[%emt 0:00:07]} 3. b3 {[%emt 0:00:14]} d5 {[%emt 0:00:06]} 4. e3 {[%emt 0:00:18]} Be7 {[%emt 0:00:48]} 5. Bb2 {[%emt 0:00:16]} dxc4 {[%emt 0:01:00]} 6. bxc4 {[%emt 0:02:58] A13: English Opening: 1...e6.} c5 {[%emt 0:00:03]} 7. Nc3 {[%emt 0:00:44]} O-O {[%emt 0:01:32]} 8. Qc2 {[%emt 0:00:56] The position is equal.} Nc6 {[%emt 0:00:16]} 9. a3 {[%emt 0:00:24]} b6 {[%emt 0:07:57] [#]} 10. Bd3 $146 {[%emt 0:02:03]} ({Predecessor:} 10. Be2 Bb7 11. Rg1 Na5 12. d3 Ne8 13. g4 Nd6 14. g5 Nf5 15. Ne4 a6 16. Ne5 {1-0 (149) Malakhov,V (2666)-Movsesian,S (2645) Biograd 2018}) 10... Qd7 {[%emt 0:01:55]} 11. Ne4 {[%emt 0:03:19]} Nxe4 {[%emt 0:00:07]} 12. Bxe4 {[%emt 0:00:06]} f5 $1 {[%emt 0:00:02]} 13. Bd3 {[%emt 0:06:54]} (13. Bxc6 $11 Qxc6 14. O-O-O) 13... Bb7 {[%emt 0:01:40]} 14. O-O {[%emt 0:03:48]} Bf6 {[%emt 0:00:48] Hoping for ...Bxb2.} 15. Bxf6 {[%emt 0:03:09]} Rxf6 {[%emt 0:00:30]} 16. Be2 {[%emt 0:04:15]} e5 {[%emt 0:00:54]} 17. d3 {[%emt 0:01:25] Inhibits e4.} Qe7 {[%emt 0:01:16]} 18. Nd2 {[%emt 0:00:43]} Rg6 {[%emt 0:06:44]} (18... Rh6 $17 {[%cal Oc6d4] aiming for ...Nd4!} 19. Rfe1 Rd8) 19. Bf3 $15 {[%emt 0:02:18]} e4 {[%emt 0:00:04]} 20. dxe4 {[%emt 0:02:01]} Ne5 $1 {[%emt 0:00:05]} 21. Kh1 $2 {[%emt 0:03:41] White does not recover from this.} (21. exf5 {gets mated.} Nxf3+ 22. Nxf3 Rxg2+ $3 {[%mdl 512]} 23. Kxg2 Qg5+ 24. Kh3 Bxf3) (21. Be2 $17) 21... Nxf3 $40 {[%emt 0:00:37][%mdl 192] Deflection. Black wants a kill.} 22. Nxf3 {[%emt 0:04:00]} (22. gxf3 Rd8 23. Rg1) 22... Bxe4 $19 {[%emt 0:00:31] Black is clearly winning.} 23. Qe2 {[%emt 0:01:26] [#]} Rxg2 $3 {[%emt 0:00:09][%mdl 512]} 24. Rg1 {[%emt 0:00:22]} (24. Rad1 Rg6) 24... Rg4 {[%emt 0:02:37] Threatens to win with ...Qb7.} 25. Rg3 {[%emt 0:01:53]} Qb7 {[%emt 0:02:13] ( -> ...Rxg3)} 26. Rag1 {[%emt 0:01:57]} h5 {[%emt 0:00:05] White must now prevent ...f4.} 27. Rh3 {[%emt 0:01:11]} g5 {[%emt 0:01:16]} 28. Qd1 {[%emt 0:03:07]} Rf8 {[%emt 0:01:16] Weighted Error Value: White=0.67/Black=0.14 (very precise)} 0-1

[Event "Israeli Team U18-ch 2022"]
[Site "Be'er Ya'akov"]
[Date "2022.08.16"]
[Round "6.4"]
[White "Uritsky, Yonathan"]
[Black "Ostrovsky Berman, Noam"]
[Result "1-0"]
[ECO "B38"]
[WhiteElo "2130"]
[BlackElo "1778"]
[Annotator "TA"]
[PlyCount "85"]
[EventDate "2022.08.14"]
[EventCountry "ISR"]
[SourceTitle "playchess.com"]
[Source "ChessBase"]
[SourceQuality "1"]
[TimeControl "3000+10"]

{[%evp 21,85,34,45,42,62,58,59,22,51,45,35,37,91,77,81,53,60,45,118,68,62,79,381,385,371,153,129,135,132,70,54,0,51,0,0,0,0,0,0,0,70,76,76,71,62,44,49,25,40,30,58,62,79,70,63,58,308,308,308,308,307,300,881,812,716,699]} 1. e4 {[%emt 0:00:02]} c5 {[%emt 0:00:04]} 2. Nf3 {[%emt 0:00:06]} g6 {[%emt 0:00:03]} 3. d4 {[%emt 0:00:03]} cxd4 {[%emt 0:00:04]} 4. Nxd4 {[%emt 0:00:04]} Nc6 {[%emt 0:00:05]} 5. c4 {[%emt 0:00:06]} Bg7 {[%emt 0:00:04]} 6. Be3 {[%emt 0:00:05]} Nf6 {[%emt 0:00:04]} 7. Nc3 {[%emt 0:00:06]} O-O {[%emt 0:00:08]} 8. Be2 {[%emt 0:00:04]} d6 {[%emt 0:00:07]} 9. O-O {[%emt 0:00:10]} Bd7 {[%emt 0:00:03]} 10. h3 {[%emt 0:00:06]} Nxd4 {[%emt 0:00:32]} 11. Bxd4 {[%emt 0:00:01]} Bc6 {[%emt 0:00:19]} 12. Qc2 {[%emt 0:00:01] B38: Sicilian: Maroczy Bind with 5...Bg7 and 7...0-0.} Nd7 {[%emt 0:06:34]} 13. Bxg7 {[%emt 0:00:02]} Kxg7 {[%emt 0:00:07]} 14. Rad1 {[%emt 0:00:05] White is slightly better.} a5 {[%emt 0:03:17]} 15. Bg4 {[%emt 0:00:01]} Nc5 {[%emt 0:18:58]} 16. e5 {[%emt 0:00:01]} Qc7 {[%emt 0:00:40]} ({Black should play} 16... Re8 $14) 17. exd6 $16 {[%emt 0:00:47]} exd6 {[%emt 0:00:10]} 18. Qd2 {[%emt 0:01:49]} Rad8 {[%emt 0:01:26] [#]} 19. Rfe1 $146 {[%emt 0:01:25]} ({Predecessor:} 19. Qd4+ Kg8 20. Rfe1 Rfe8 21. Rxe8+ Rxe8 22. Qxd6 Qxd6 23. Rxd6 Ne4 24. Rd3 Nxc3 25. Rxc3 {½-½ (60) Czopor,M (2144)-Moravec,V (2211) Liberec 2018}) 19... Na4 {[%emt 0:11:35]} (19... Rde8 $14) 20. Ne2 {[%emt 0:04:59]} (20. Nxa4 $16 Bxa4 21. b3) 20... d5 {[%emt 0:03:32]} 21. c5 {[%emt 0:01:22]} (21. cxd5 Rxd5 22. Qc1 Rc5 $11) 21... b6 $2 {[%emt 0:01:46][%mdl 8192]} (21... Kg8 $16 {is a better chance.}) 22. cxb6 $1 $18 {[%emt 0:00:37]} Qxb6 {[%emt 0:00:57]} 23. Nd4 {[%emt 0:00:41]} (23. b3 $1 $18 {and the rest is easy.}) 23... Bd7 $16 {[%emt 0:01:01]} 24. Bxd7 {[%emt 0:02:21] White is more active.} Rxd7 {[%emt 0:00:01]} 25. Qg5 {[%emt 0:01:23]} (25. Re3 $1 $16) 25... Qf6 $14 {[%emt 0:01:03]} 26. Qg4 {[%emt 0:00:02]} (26. Qc1 $14) 26... Rc7 {[%emt 0:00:34] [#]} (26... Rb7 $11) 27. b3 {[%emt 0:00:35]} (27. Re6 $1 $14 fxe6 28. Nxe6+ Kg8 29. Nxc7 Qxf2+ 30. Kh2 Nxb2 31. Rxd5) 27... Nc3 $11 {[%emt 0:00:13][%csl LRa2,LRd1]} 28. Rd3 $1 {[%emt 0:01:11]} ({Don't go for} 28. Rc1 $2 Rfc8 29. Rc2 h5 30. Ne6+ fxe6 $19) 28... Ne4 {[%emt 0:00:27]} 29. Qf3 {[%emt 0:01:16]} Qxf3 {[%emt 0:00:06]} 30. Nxf3 {[%emt 0:00:02]} Rc2 {[%emt 0:00:30]} (30... Rc5 $11) 31. Rxd5 $14 {[%emt 0:01:15]} Nc3 {[%emt 0:00:02]} 32. Rxa5 {[%emt 0:01:52]} Rxa2 {[%emt 0:00:01]} 33. Rc5 {[%emt 0:01:34][%cal Ba5c5,Bc5c7,Bc7b7][%mdl 32]} Ne2+ {[%emt 0:00:04]} 34. Kh2 {[%emt 0:01:18]} Nf4 {[%emt 0:00:17] Hoping for ...Nd3.} 35. Rc7 {[%emt 0:01:14]} Rb2 {[%emt 0:00:33]} 36. Rb7 $36 {[%emt 0:00:28][%mdl 2048] Black is under pressure.} Nd3 {[%emt 0:00:07]} 37. Ree7 {[%emt 0:00:16] Ng5 is the strong threat.} (37. Re3 $5 {[%cal Re3d3]} Nf4 38. Rd7 $16) 37... Kf6 {[%emt 0:00:22] Inhibits Ng5.} 38. Re3 {[%emt 0:03:13]} Nxf2 {[%emt 0:00:17] [#]} (38... Nc5 $14 39. Rb6+ Kg7) 39. Ne5 $1 $18 {[%emt 0:00:02] aiming for Nd7+.} Kg7 {[%emt 0:00:11]} 40. Rf3 {[%emt 0:00:22][%cal Re5f7]} Ne4 {[%emt 0:00:05]} 41. Nxf7 {[%emt 0:01:06] Black must now prevent Ng5+.} ({Weaker is} 41. Rfxf7+ Rxf7 42. Rxf7+ Kh6 $16) 41... Rf2 $2 {[%emt 0:00:18]} (41... Rxb3 42. Rfxb3 Rxf7 43. Rxf7+ Kxf7 44. Rb7+ Kg8) 42. Ng5+ {[%emt 0:00:51]} Kg8 {[%emt 0:00:05]} 43. Rxf8+ {[%emt 0:00:10] Weighted Error Value: White=0.16 (very precise) /Black=0.52} ({Less strong is} 43. Nxe4 R8xf3 44. Nxf2 Rxf2 $16) 1-0

[Event "Israeli Team U18-ch 2022"]
[Site "Be'er Ya'akov"]
[Date "2022.08.16"]
[Round "6.6"]
[White "Zemach, Nadav"]
[Black "Milikow, Yoav"]
[Result "0-1"]
[ECO "E16"]
[WhiteElo "2225"]
[BlackElo "2452"]
[Annotator "TA"]
[PlyCount "82"]
[EventDate "2022.08.14"]
[EventCountry "ISR"]
[SourceTitle "playchess.com"]
[Source "ChessBase"]
[SourceQuality "1"]
[TimeControl "3000+10"]

{[%evp 17,82,0,0,0,8,4,12,7,8,0,20,0,5,4,25,0,0,0,25,-320,-326,-347,-363,-551,-551,-710,-595,-718,-716,-712,-710,-691,-697,-689,-687,-662,-512,-652,-532,-529,-512,-503,-421,-408,-411,-441,-441,-502,-437,-652,-652,-748,-748,-702,-623,-622,-622,-606,-598,-789,-811,-722,-591,-584,-516,-509,-500]} 1. d4 {[%emt 0:00:03]} Nf6 {[%emt 0:00:04]} 2. c4 {[%emt 0:00:04]} e6 {[%emt 0:00:03]} 3. g3 {[%emt 0:00:06]} Bb4+ {[%emt 0:00:17]} 4. Nd2 {[%emt 0:00:06]} d5 {[%emt 0:00:15]} 5. Bg2 {[%emt 0:00:06]} O-O {[%emt 0:00:47]} 6. Ngf3 {[%emt 0:00:07]} b6 {[%emt 0:00:04]} 7. O-O {[%emt 0:00:07]} Bb7 {[%emt 0:00:29]} 8. a3 {[%emt 0:00:16]} Be7 {[%emt 0:00:08]} 9. cxd5 {[%emt 0:00:05] 9.cxd5 is better than 9.b4.} exd5 {[%emt 0:00:05]} 10. b4 {[%emt 0:00:06] E16: Queen's Indian: 4 g3 Bb7 5 Bg2 Bb4+.} a5 {[%emt 0:02:07]} 11. b5 {[%emt 0:00:05]} a4 {[%emt 0:01:05]} 12. Nb1 {[%emt 0:08:26] [#] The position is equal.} c6 $146 {[%emt 0:08:10]} ({Predecessor:} 12... Qe8 13. Bf4 Bd6 14. Bxd6 cxd6 15. Nc3 Ne4 16. Nxe4 dxe4 17. Nd2 d5 18. Rb1 Bc8 {½-½ (29) Taboas Rodriguez,D (2266)-Malmdin,N (2200) Mallorca 2004}) 13. bxc6 {[%emt 0:01:54]} Nxc6 {[%emt 0:01:29]} 14. Nc3 {[%emt 0:00:41]} Ne4 {[%emt 0:02:15]} 15. Nxa4 {[%emt 0:02:45]} Ba6 {[%emt 0:02:39][%cal Bb7a6,Ba6b5,Bb5e2][%mdl 32] [#] ...Bb5 is the strong threat.} 16. Qc2 {[%emt 0:09:59]} Rc8 {[%emt 0:04:20][%cal Oc6d4] And now ...Nxd4! would win.} 17. Qd1 {[%emt 0:05:22]} Bb5 {[%emt 0:04:39] Strongly threatening ...Ra8.} 18. Bd2 $2 {[%emt 0:03:39][%mdl 8192] Loses the game.} (18. Ne5 $11 {and White has nothing to worry.}) 18... Nxd2 $19 {[%emt 0:00:37][%mdl 64] [#] Deflection} 19. Nxd2 {[%emt 0:00:06]} Nxd4 {[%emt 0:00:07][%cal Bc6d4,Bd4e2,Be2c1,Bc1d3][%mdl 32]} 20. Nb2 {[%emt 0:04:55]} (20. Nf3 $142 Nc2 21. Bh3 Bxa4 22. Bxc8 Qxc8 23. Rb1) 20... Bxe2 {[%emt 0:01:31] This bishop pair is nice.} 21. Qa4 {[%emt 0:00:16]} Bf6 {[%emt 0:00:30]} 22. Rfc1 {[%emt 0:03:00]} Rxc1+ {[%emt 0:00:18]} 23. Rxc1 {[%emt 0:00:08]} Bb5 {[%emt 0:00:08]} 24. Qb4 {[%emt 0:00:31]} Ne2+ {[%emt 0:00:08]} 25. Kh1 {[%emt 0:00:05]} Nxc1 {[%emt 0:00:21]} 26. Qxb5 {[%emt 0:00:04]} Qe7 {[%emt 0:00:23] Hoping for ...Qe1+.} 27. Qxb6 {[%emt 0:01:02]} Qxa3 {[%emt 0:01:11]} 28. Nd1 {[%emt 0:00:15]} Qd3 {[%emt 0:01:58]} 29. Qe3 {[%emt 0:00:29]} d4 {[%emt 0:01:06][%cal Bd5d4,Bd4d3][%mdl 32]} 30. Qxd3 {[%emt 0:02:23]} Nxd3 {[%emt 0:00:02]} 31. Bf1 {[%emt 0:00:07]} Ne1 {[%emt 0:00:39] Black is clearly winning.} 32. Kg1 {[%emt 0:01:10]} Rc8 {[%emt 0:00:23]} 33. Nb2 {[%emt 0:02:49]} (33. Bc4 $142) 33... Rc2 {[%emt 0:00:27]} 34. Nbc4 {[%emt 0:00:06]} d3 {[%emt 0:00:08]} 35. Bh3 {[%emt 0:00:44]} Bc3 {[%emt 0:00:46]} 36. Ne4 {[%emt 0:00:03]} Bb4 {[%emt 0:00:14]} 37. Ne3 {[%emt 0:00:18]} Rc1 {[%emt 0:00:13]} 38. Bg4 {[%emt 0:00:11]} Nc2+ {[%emt 0:01:04]} 39. Kg2 {[%emt 0:00:25]} Nxe3+ {[%emt 0:00:15]} 40. fxe3 {[%emt 0:00:03]} f5 {[%emt 0:00:15]} 41. Bxf5 {[%emt 0:00:03]} d2 {[%emt 0:00:06] Weighted Error Value: White=0.72/Black=0.24 (precise)} 0-1